fUSD/lending_fUSD_20250510
["ID","MTS","AMOUNT","RATE_DAILY","PERIOD"]
[360654237,1746917442539,-1000.0,0.00019452,2]
[360654238,1746917442548,-1000.0,0.00019452,2]
[360654239,1746917442558,-756.0,0.00019452,2]
[360654240,1746917442567,-150.0,0.00019472,2]
[360654241,1746917442576,-150.0,0.00019473,2]
[360654242,1746917442586,-150.0,0.00019474,2]
[360654243,1746917442595,-150.0,0.00019476,2]
[360654244,1746917442604,-150.0,0.00019477,2]
[360654245,1746917442614,-150.0,0.0001948,2]
[360654246,1746917442623,-150.0,0.0001948,2]
[360654247,1746917442633,-188.764123,0.0001948,2]
[360654248,1746917442643,-150.0,0.00019484,2]
[360654249,1746917442652,-150.0,0.00019491,2]
[360654250,1746917442662,-150.0,0.00019497,2]
[360654251,1746917442671,-150.0,0.00019499,2]
[360654252,1746917442682,-151.0,0.00019502,2]
[360654253,1746917442691,-150.0,0.00019506,2]
[360654254,1746917442700,-150.0,0.00019509,2]
[360654255,1746917442710,-150.0,0.0001951,2]
[360654256,1746917442719,-150.0,0.00019511,2]
[360654257,1746917442728,-250.0,0.00019511,2]
[360654258,1746917442738,-150.0,0.00019513,2]
[360654259,1746917442747,-151.0,0.00019514,2]
[360654260,1746917442756,-150.0,0.00019515,2]
[360654261,1746917442766,-150.0,0.00019515,2]
[360654262,1746917442775,-150.0,0.00019517,2]
[360654263,1746917442784,-150.0,0.00019518,2]
[360654264,1746917442793,-150.0,0.00019519,2]
[360654265,1746917442802,-150.0,0.00019519,2]
[360654266,1746917442811,-150.0,0.00019519,2]
[360654267,1746917442821,-3742.58933284,0.00019526,2]
[360654268,1746917442833,-6774.40286895,0.00019526,2]
[360654269,1746917442842,-150.0,0.00019527,2]
[360654270,1746917442851,-150.0,0.00019532,2]
[360654271,1746917442862,-150.0,0.00019536,2]
[360654272,1746917442871,-150.0,0.00019536,2]
[360654273,1746917442880,-196.1921187,0.00019537,2]
[360654274,1746917442890,-150.0,0.00019539,2]
[360654275,1746917442899,-150.0,0.00019542,2]
[360654276,1746917442909,-190.77827514,0.00019548,2]
[360654277,1746917442919,-150.0,0.00019555,2]
[360654278,1746917442930,-150.0,0.00019557,2]
[360654279,1746917442939,-150.0,0.0001956,2]
[360654280,1746917442948,-150.0,0.0001956,2]
[360654281,1746917442957,-150.0,0.0001956,2]
[360654282,1746917442967,-150.0,0.0001957,2]
[360654283,1746917442976,-150.0,0.00019572,2]
[360654284,1746917442985,-150.0,0.00019579,2]
[360654285,1746917442995,-2613.66,0.0001958,2]
[360654286,1746917443004,-150.0,0.00019581,2]
[360654287,1746917443014,-150.0,0.00019582,2]
[360654288,1746917443023,-215.0738,0.00019587,2]
[360654289,1746917443032,-150.0,0.00019607,2]
[360654290,1746917443041,-150.0,0.00019608,2]
[360654291,1746917443052,-150.0,0.00019612,2]
[360654292,1746917443061,-150.0,0.00019613,2]
[360654293,1746917443070,-150.0,0.00019614,2]
[360654294,1746917443080,-3742.58933284,0.00019616,2]
[360654295,1746917443089,-6774.40286895,0.00019616,2]
[360654296,1746917443099,-150.0,0.00019619,2]
[360654297,1746917443108,-400.0,0.00019619,2]
[360654298,1746917443118,-400.0,0.00019619,2]
[360654299,1746917443129,-400.0,0.00019619,2]
[360654300,1746917443139,-400.0,0.00019619,2]
[360654301,1746917443147,-400.0,0.00019619,2]
[360654302,1746917443158,-454.1,0.00019619,2]
[360654304,1746917443168,-400.0,0.00019619,2]
[360654305,1746917443178,-400.0,0.00019619,2]
[360654306,1746917443187,-400.0,0.00019619,2]
[360654307,1746917443196,-449.98,0.00019619,2]
[360654308,1746917443206,-1517.7,0.00019619,2]
[360654309,1746917443216,-400.0,0.00019619,2]
[360654310,1746917443226,-481.08,0.00019619,2]
[360654311,1746917443235,-1200.82,0.00019619,2]
[360654313,1746917443244,-400.0,0.00019619,2]
[360654315,1746917443254,-400.0,0.00019619,2]
[360654316,1746917443263,-1547.63,0.00019619,2]
[360654317,1746917443272,-400.0,0.00019619,2]
[360654318,1746917443282,-500.0,0.00019619,2]
[360654319,1746917443291,-400.0,0.00019619,2]
[360654320,1746917443300,-963.47,0.00019619,2]
[360654321,1746917443309,-400.0,0.00019619,2]
[360654322,1746917443318,-405.27214033,0.00019619,2]
[360654323,1746917443328,-400.0,0.00019619,2]
[360654324,1746917443337,-1532.46,0.00019619,2]
[360654325,1746917443346,-400.0,0.00019619,2]
[360654326,1746917443356,-406.5611586,0.00019619,2]
[360654327,1746917443365,-400.0,0.00019619,2]
[360654328,1746917443374,-400.0,0.00019619,2]
[360654329,1746917443383,-400.0,0.00019619,2]
[360654330,1746917443392,-400.0,0.00019619,2]
[360654331,1746917443403,-400.0,0.00019619,2]
[360654332,1746917443413,-400.0,0.00019619,2]
[360654333,1746917443423,-420.09744836,0.0001962,2]
[360654334,1746917443433,-400.0,0.0001962,2]
[360654335,1746917443442,-244.57361184,0.0001962,2]
[360654336,1746917443452,-400.0,0.0001962,2]
[360654337,1746917443461,-400.0,0.0001962,2]
[360654338,1746917443471,-400.0,0.0001962,2]
[360654339,1746917443480,-503.50124388,0.0001962,2]
[360654340,1746917443491,-400.0,0.0001962,2]
[360654341,1746917443500,-400.0,0.0001962,2]
[360654342,1746917443510,-400.0,0.0001962,2]
[360654343,1746917443519,-400.0,0.0001962,2]
[360654344,1746917443529,-400.0,0.0001962,2]
[360654345,1746917443538,-400.0,0.0001962,2]
[360654346,1746917443547,-400.0,0.0001962,2]
[360654347,1746917443556,-400.0,0.0001962,2]
[360654348,1746917443566,-400.0,0.0001962,2]
[360654349,1746917443575,-400.0,0.0001962,2]
[360654350,1746917443584,-262.84,0.0001962,2]
[360654351,1746917443593,-400.0,0.0001962,2]
[360654352,1746917443603,-449.24,0.0001962,2]
[360654353,1746917443611,-400.0,0.0001962,2]
[360654354,1746917443621,-400.0,0.0001962,2]
[360654355,1746917443630,-400.0,0.0001962,2]
[360654356,1746917443640,-400.0,0.0001962,2]
[360654357,1746917443652,-775.57,0.0001962,2]
[360654358,1746917443661,-400.0,0.0001962,2]
[360654359,1746917443671,-400.0,0.0001962,2]
[360654360,1746917443680,-705.85,0.0001962,2]
[360654362,1746917443689,-400.0,0.0001962,2]
[360654363,1746917443697,-400.0,0.0001962,2]
[360654364,1746917443707,-400.0,0.0001962,2]
[360654365,1746917443716,-633.38,0.0001962,2]
[360654366,1746917443727,-400.0,0.0001962,2]
[360654367,1746917443737,-400.0,0.0001962,2]
[360654368,1746917443748,-551.47,0.0001962,2]
[360654369,1746917443758,-400.0,0.0001962,2]
[360654370,1746917443767,-400.0,0.0001962,2]
[360654371,1746917443777,-849.85,0.0001962,2]
[360654372,1746917443786,-400.0,0.0001962,2]
[360654373,1746917443795,-599.9,0.0001962,2]
[360654374,1746917443804,-400.0,0.0001962,2]
[360654375,1746917443813,-408.02,0.0001962,2]
[360654376,1746917443826,-956.29,0.0001962,2]
[360654377,1746917443836,-400.0,0.0001962,2]
[360654378,1746917443845,-400.0,0.0001962,2]
[360654379,1746917443854,-1055.76,0.0001962,2]
[360654380,1746917443863,-400.0,0.0001962,2]
[360654381,1746917443874,-400.0,0.0001962,2]
[360654382,1746917443885,-400.0,0.0001962,2]
[360654383,1746917443895,-400.0,0.0001962,2]
[360654384,1746917443908,-928.47,0.0001962,2]
[360654385,1746917443919,-400.0,0.0001962,2]
[360654386,1746917443928,-400.0,0.0001962,2]
[360654387,1746917443937,-400.0,0.0001962,2]
[360654388,1746917443946,-400.0,0.0001962,2]
[360654389,1746917443955,-400.0,0.0001962,2]
[360654390,1746917443964,-400.0,0.0001962,2]
[360654391,1746917443974,-400.0,0.0001962,2]
[360654392,1746917443984,-400.0,0.0001962,2]
[360654393,1746917443995,-300.0,0.0001962,2]
[360654394,1746917444005,-436.79351591,0.0001962,2]
[360654395,1746917444014,-400.0,0.0001962,2]
[360654396,1746917444024,-400.0,0.0001962,2]
[360654397,1746917444034,-400.0,0.0001962,2]
[360654398,1746917444045,-194.58,0.0001962,2]
[360654399,1746917444055,-400.0,0.0001962,2]
[360654400,1746917444065,-379.012875,0.0001962,2]
[360654401,1746917444074,-400.0,0.0001962,2]
[360654402,1746917444084,-379.79,0.0001962,2]
[360654403,1746917444094,-400.0,0.0001962,2]
[360654404,1746917444104,-400.0,0.0001962,2]
[360654405,1746917444113,-400.0,0.0001962,2]
[360654406,1746917444123,-929.0,0.0001962,2]
[360654407,1746917444132,-1303.0,0.0001962,2]
[360654408,1746917444141,-653.0,0.0001962,2]
[360654409,1746917444150,-798.0,0.0001962,2]
[360654410,1746917444159,-5937.0,0.0001962,2]
[360654411,1746917444168,-281.139,0.0001962,2]
[360654412,1746917444177,-583.0,0.0001962,2]
[360654413,1746917444188,-917.0,0.0001962,2]
[360654414,1746917444198,-1247.0,0.0001962,2]
[360654415,1746917444207,-1455.0,0.0001962,2]
[360654416,1746917444217,-552.0,0.0001962,2]
[360654417,1746917444226,-150.0,0.0001962,2]
[360654418,1746917444236,-879.0,0.0001962,2]
[360654419,1746917444246,-167.59,0.0001962,2]
[360654420,1746917444255,-6813.0,0.0001962,2]
[360654421,1746917444265,-250.183,0.0001962,2]
[360654422,1746917444274,-4024.0,0.0001962,2]
[360654423,1746917444284,-270.225,0.0001962,2]
[360654424,1746917444293,-879.0,0.0001962,2]
[360654425,1746917444304,-150.0,0.00019622,2]
[360654426,1746917444314,-150.0,0.00019625,2]
[360654427,1746917444324,-196.1921187,0.00019628,2]
[360654428,1746917444334,-150.0,0.00019629,2]
[360654429,1746917444344,-150.0,0.00019635,2]
[360654430,1746917444354,-150.0,0.00019636,2]
[360654431,1746917444363,-150.0,0.00019636,2]
[360654432,1746917444372,-150.0,0.00019641,2]
[360654433,1746917444382,-150.0,0.00019642,2]
[360654434,1746917444391,-150.0,0.00019644,2]
[360654435,1746917444401,-432.90760918,0.00019645,2]
[360654436,1746917444411,-458.73149515,0.00019646,2]
[360654437,1746917444420,-156.1225383,0.00019647,2]
[360654438,1746917444430,-150.0,0.00019647,2]
[360654439,1746917444440,-150.0,0.00019649,2]
[360654440,1746917444449,-150.0,0.00019651,2]
[360654441,1746917444459,-150.0,0.00019651,2]
[360654442,1746917444469,-150.0,0.00019654,2]
[360654443,1746917444478,-150.0,0.00019658,2]
[360654444,1746917444488,-150.0,0.00019659,2]
[360654445,1746917444498,-150.0,0.00019662,2]
[360654446,1746917444508,-190.77827514,0.00019665,2]
[360654447,1746917444517,-150.0,0.00019669,2]
[360654448,1746917444527,-1922.33074122,0.0001967,2]
[360654449,1746917444536,-150.0,0.00019673,2]
[360654450,1746917444546,-150.0,0.00019674,2]
[360654451,1746917444556,-150.0,0.00019677,2]
[360654452,1746917444565,-150.0,0.00019678,2]
[360654453,1746917444574,-150.0,0.00019679,2]
[360654454,1746917444584,-636.60262983,0.0001968,2]
[360654455,1746917444594,-150.0,0.00019681,2]
[360654456,1746917444603,-150.0,0.00019687,2]
[360654457,1746917444612,-432.90760913,0.00019688,2]
[360654458,1746917444622,-300.0,0.00019689,2]
[360654459,1746917444631,-400.0,0.00019698,2]
[360654460,1746917444641,-400.0,0.00019698,2]
[360654461,1746917444651,-400.0,0.00019698,2]
[360654462,1746917444661,-400.0,0.00019698,2]
[360654463,1746917444671,-400.0,0.00019698,2]
[360654464,1746917444681,-400.0,0.00019698,2]
[360654465,1746917444690,-400.0,0.00019698,2]
[360654466,1746917444699,-400.0,0.00019698,2]
[360654467,1746917444709,-400.0,0.00019698,2]
[360654468,1746917444719,-400.0,0.00019698,2]
[360654469,1746917444729,-400.0,0.00019698,2]
[360654470,1746917444738,-400.0,0.00019698,2]
[360654471,1746917444748,-758.53,0.00019698,2]
[360654472,1746917444757,-400.0,0.00019698,2]
[360654473,1746917444767,-1081.74,0.00019699,2]
[360654474,1746917444776,-400.0,0.00019699,2]
[360654475,1746917444786,-400.0,0.00019699,2]
[360654476,1746917444795,-400.0,0.00019699,2]
[360654477,1746917444805,-400.0,0.00019699,2]
[360654478,1746917444814,-387.80049555,0.00019699,2]
[360654481,1746917445098,-12.19950445,0.00019699,2]
[360654482,1746917445107,-400.0,0.00019699,2]
[360654483,1746917445117,-63.18049555,0.00019699,2]
[360654484,1746917445129,-336.81950445,0.00019699,2]
[360654485,1746917445139,-400.0,0.00019699,2]
[360654486,1746917445149,-400.0,0.00019699,2]
[360654487,1746917445158,-400.0,0.00019699,2]
[360654488,1746917445168,-369.40737053,0.00019699,2]
[360654489,1746917445178,-400.0,0.00019699,2]
[360654490,1746917445189,-400.0,0.00019699,2]
[360654492,1746917445199,-400.0,0.00019699,2]
[360654493,1746917445211,-400.0,0.00019699,2]
[360654494,1746917445223,-400.0,0.00019699,2]
[360654495,1746917445235,-400.0,0.00019699,2]
[360654496,1746917445245,-400.0,0.00019699,2]
[360654497,1746917445256,-400.0,0.00019699,2]
[360654498,1746917445266,-240.09,0.00019699,2]
[360654499,1746917445275,-400.0,0.00019699,2]
[360654500,1746917445286,-400.0,0.00019699,2]
[360654501,1746917445297,-400.0,0.00019699,2]
[360654502,1746917445307,-400.0,0.00019699,2]
[360654503,1746917445317,-400.0,0.00019699,2]
[360654504,1746917445326,-400.0,0.00019699,2]
[360654505,1746917445337,-400.0,0.00019699,2]
[360654506,1746917445349,-400.0,0.00019699,2]
[360654507,1746917445360,-400.0,0.00019699,2]
[360654508,1746917445370,-400.0,0.00019699,2]
[360654509,1746917445380,-400.0,0.00019699,2]
[360654510,1746917445392,-295.95409947,0.00019699,2]
[360654511,1746917445403,-400.0,0.00019699,2]
[360654513,1746917445414,-400.0,0.00019699,2]
[360654515,1746917445424,-400.0,0.00019699,2]
[360654517,1746917445434,-400.0,0.00019699,2]
[360654519,1746917445444,-400.0,0.00019699,2]
[360654521,1746917445453,-400.0,0.00019699,2]
[360654523,1746917445464,-400.0,0.00019699,2]
[360654525,1746917445474,-400.0,0.00019699,2]
[360654527,1746917445483,-400.0,0.00019699,2]
[360654529,1746917445494,-400.0,0.00019699,2]
[360654531,1746917445503,-400.0,0.00019699,2]
[360654533,1746917445514,-400.0,0.00019699,2]
[360654535,1746917445523,-400.0,0.00019699,2]
[360654537,1746917445532,-400.0,0.00019699,2]
[360654539,1746917445541,-400.0,0.00019699,2]
[360654541,1746917445551,-400.0,0.00019699,2]
[360654543,1746917445561,-400.0,0.00019699,2]
[360654545,1746917445570,-402.18,0.00019699,2]
[360654547,1746917445579,-400.0,0.00019699,2]
[360654549,1746917445590,-400.0,0.00019699,2]
[360654551,1746917445600,-400.0,0.00019699,2]
[360654553,1746917445610,-400.0,0.00019699,2]
[360654555,1746917445620,-442.36,0.00019699,2]
[360654557,1746917445630,-400.0,0.00019699,2]
[360654559,1746917445640,-310.97028971,0.00019699,2]
[360654562,1746917445654,-240.71971029,0.00019699,2]
[360654564,1746917445664,-400.0,0.00019699,2]
[360654566,1746917445673,-400.0,0.00019699,2]
[360654568,1746917445684,-400.0,0.00019699,2]
[360654570,1746917445694,-400.0,0.00019699,2]
[360654572,1746917445704,-400.0,0.00019699,2]
[360654574,1746917445713,-400.0,0.00019699,2]
[360654576,1746917445724,-432.65211255,0.00019699,2]
[360654578,1746917445734,-400.0,0.00019699,2]
[360654580,1746917445743,-818.32,0.00019699,2]
[360654582,1746917445753,-934.59,0.00019699,2]
[360654584,1746917445763,-603.54,0.00019699,2]
[360654586,1746917445772,-400.0,0.00019699,2]
[360654588,1746917445782,-806.22,0.00019699,2]
[360654590,1746917445792,-1000.0,0.00019699,2]
[360654592,1746917445801,-400.0,0.00019699,2]
[360654594,1746917445811,-400.0,0.00019699,2]
[360654596,1746917445822,-1970.14,0.00019699,2]
[360654598,1746917445833,-1861.45,0.00019699,2]
[360654600,1746917445843,-500.0,0.00019699,2]
[360654603,1746917445855,-1330.7,0.00019699,2]
[360654605,1746917445866,-400.0,0.00019699,2]
[360654607,1746917445875,-260.52658966,0.00019699,2]
[360654609,1746917445894,-1150.84341034,0.00019699,2]
[360654611,1746917445905,-400.0,0.00019699,2]
[360654613,1746917445916,-598.54,0.00019699,2]
[360654615,1746917445925,-400.0,0.00019699,2]
[360654618,1746917445936,-193.68,0.00019699,2]
[360654620,1746917445946,-1726.27904017,0.00019699,2]
[360654622,1746917445959,-247.88095983,0.00019699,2]
[360654624,1746917445968,-29.69007396,0.00019699,2]
[360654658,1746917446292,-400.0,0.00019178,2]
[360654660,1746917446302,-403.38004692,0.00019178,2]
[360654662,1746917446311,-370.30992604,0.00019699,2]
[360654664,1746917446321,-1080.2,0.00019699,2]
[360654666,1746917446331,-400.0,0.00019699,2]
[360654668,1746917446340,-371.31,0.00019699,2]
[360654670,1746917446350,-281.27,0.00019699,2]
[360654672,1746917446359,-164.06649841,0.00019699,2]
[360654674,1746917446371,-474.42350159,0.00019699,2]
[360654676,1746917446380,-400.04,0.00019699,2]
[360654678,1746917446389,-400.0,0.00019699,2]
[360654680,1746917446399,-400.0,0.00019699,2]
[360654682,1746917446408,-400.0,0.00019699,2]
[360654684,1746917446417,-400.0,0.00019699,2]
[360654686,1746917446427,-361.94,0.00019699,2]
[360654689,1746917446438,-166.53748789,0.00019699,2]
[360654691,1746917446448,-400.0,0.00019699,2]
[360654693,1746917446458,-400.0,0.00019699,2]
[360654694,1746917446467,-400.0,0.00019699,2]
[360654697,1746917446477,-400.0,0.00019699,2]
[360654701,1746917446486,-400.0,0.00019699,2]
[360654702,1746917446496,-400.0,0.00019699,2]
[360654703,1746917446505,-400.0,0.00019699,2]
[360654704,1746917446514,-426.62,0.00019699,2]
[360654705,1746917446523,-400.0,0.00019699,2]
[360654706,1746917446532,-400.0,0.00019699,2]
[360654707,1746917446542,-400.0,0.00019699,2]
[360654708,1746917446551,-400.0,0.00019699,2]
[360654709,1746917446560,-400.0,0.00019699,2]
[360654710,1746917446570,-400.0,0.00019699,2]
[360654711,1746917446579,-400.0,0.00019699,2]
[360654712,1746917446588,-400.0,0.00019699,2]
[360654713,1746917446597,-400.0,0.00019699,2]
[360654714,1746917446607,-400.0,0.00019699,2]
[360654715,1746917446616,-400.0,0.00019699,2]
[360654716,1746917446625,-400.0,0.00019699,2]
[360654717,1746917446635,-400.0,0.00019699,2]
[360654718,1746917446645,-400.0,0.00019699,2]
[360654719,1746917446655,-400.0,0.00019699,2]
[360654720,1746917446664,-400.0,0.00019699,2]
[360654721,1746917446674,-400.0,0.00019699,2]
[360654722,1746917446685,-400.0,0.00019699,2]
[360654723,1746917446695,-400.0,0.00019699,2]
[360654724,1746917446704,-400.0,0.00019699,2]
[360654725,1746917446714,-400.0,0.00019699,2]
[360654726,1746917446724,-400.0,0.00019699,2]
[360654727,1746917446733,-400.0,0.00019699,2]
[360654728,1746917446742,-400.0,0.00019699,2]
[360654729,1746917446751,-400.0,0.00019699,2]
[360654730,1746917446761,-400.0,0.00019699,2]
[360654731,1746917446771,-400.0,0.00019699,2]
[360654732,1746917446780,-400.0,0.00019699,2]
[360654733,1746917446789,-400.0,0.00019699,2]
[360654734,1746917446798,-400.0,0.00019699,2]
[360654735,1746917446807,-3014.0,0.000197,2]
[360654736,1746917446817,-150.0,0.00019703,2]
[360654738,1746917446831,-3742.58933284,0.00019706,2]
[360654740,1746917446840,-6774.40286895,0.00019706,2]
[360654742,1746917446849,-400.0,0.00019713,2]
[360654744,1746917446859,-400.0,0.00019713,2]
[360654746,1746917446868,-400.0,0.00019714,2]
[360654748,1746917446878,-701.01,0.00019714,2]
[360654750,1746917446887,-400.0,0.00019714,2]
[360654752,1746917446899,-400.0,0.00019714,2]
[360654754,1746917446909,-400.0,0.00019714,2]
[360654756,1746917446918,-400.0,0.00019714,2]
[360654758,1746917446927,-400.0,0.00019714,2]
[360654760,1746917446938,-462.33,0.00019714,2]
[360654762,1746917446947,-400.0,0.00019714,2]
[360654764,1746917446957,-640.73,0.00019714,2]
[360654766,1746917446966,-35241.11,0.00019714,2]
[360654768,1746917446976,-1090.23,0.00019714,2]
[360654770,1746917446985,-765.64,0.00019714,2]
[360654772,1746917446994,-1583.58,0.00019714,2]
[360654774,1746917447003,-400.0,0.00019714,2]
[360654776,1746917447013,-150.0,0.00019718,2]
[360654778,1746917447022,-196.1921187,0.00019718,2]
[360654780,1746917447031,-150.0,0.00019721,2]
[360654782,1746917447041,-150.0,0.00019722,2]
[360654784,1746917447051,-150.0,0.00019725,2]
[360654786,1746917447060,-500.0,0.00019726,2]
[360654788,1746917447069,-151.64493616,0.00019726,2]
[360654790,1746917447079,-150.0,0.00019726,2]
[360654792,1746917447088,-150.0,0.00019726,2]
[360654794,1746917447097,-150.5013834,0.00019726,2]
[360654796,1746917447106,-500.0,0.00019726,2]
[360654798,1746917447115,-156.587,0.00019726,2]
[360654800,1746917447124,-432.90760913,0.0001973,2]
[360654802,1746917447134,-150.0,0.0001973,2]
[360654804,1746917447144,-150.0,0.00019731,2]
[360654806,1746917447153,-256.58138415,0.00019735,2]
[360654808,1746917447164,-150.0,0.00019736,2]
[360654810,1746917447173,-150.0,0.0001974,2]
[360654812,1746917447182,-4157.2981625,0.0001974,2]
[360654814,1746917447193,-155.1795824,0.0001974,2]
[360654816,1746917447202,-56901.5388795,0.0001974,2]
[360654817,1746917447211,-1806.8496605,0.0001974,2]
[360654819,1746917447222,-11335.9703864,0.0001974,2]
[360654821,1746917447232,-3042.9285482,0.0001974,2]
[360654824,1746917447242,-400.0,0.00019742,2]
[360654826,1746917447251,-476.49425624,0.00019742,2]
[360654827,1746917447260,-400.0,0.00019742,2]
[360654830,1746917447270,-400.0,0.00019742,2]
[360654831,1746917447279,-701.01,0.00019742,2]
[360654834,1746917447291,-400.0,0.00019742,2]
[360654835,1746917447303,-400.0,0.00019742,2]
[360654837,1746917447313,-400.0,0.00019742,2]
[360654839,1746917447323,-454.1,0.00019742,2]
[360654841,1746917447332,-400.0,0.00019742,2]
[360654844,1746917447342,-400.0,0.00019742,2]
[360654845,1746917447351,-400.0,0.00019742,2]
[360654847,1746917447361,-400.0,0.00019742,2]
[360654849,1746917447371,-400.0,0.00019742,2]
[360654851,1746917447380,-400.0,0.00019742,2]
[360654853,1746917447389,-400.0,0.00019742,2]
[360654855,1746917447398,-449.98,0.00019742,2]
[360654857,1746917447408,-400.0,0.00019742,2]
[360654859,1746917447417,-1517.7,0.00019742,2]
[360654861,1746917447427,-400.0,0.00019742,2]
[360654863,1746917447440,-400.0,0.00019742,2]
[360654865,1746917447449,-400.0,0.00019742,2]
[360654867,1746917447459,-462.33,0.00019742,2]
[360654869,1746917447469,-400.0,0.00019742,2]
[360654872,1746917447479,-400.0,0.00019742,2]
[360654873,1746917447488,-481.08,0.00019742,2]
[360654875,1746917447498,-400.0,0.00019742,2]
[360654878,1746917447508,-1200.82,0.00019742,2]
[360654880,1746917447518,-640.73,0.00019742,2]
[360654881,1746917447527,-400.0,0.00019742,2]
[360654883,1746917447537,-35241.11,0.00019742,2]
[360654885,1746917447548,-400.0,0.00019742,2]
[360654887,1746917447557,-1547.63,0.00019742,2]
[360654890,1746917447566,-400.0,0.00019742,2]
[360654892,1746917447575,-400.0,0.00019742,2]
[360654893,1746917447585,-500.0,0.00019742,2]
[360654896,1746917447595,-1090.23,0.00019742,2]
[360654898,1746917447604,-400.0,0.00019742,2]
[360654900,1746917447614,-963.47,0.00019742,2]
[360654902,1746917447623,-536.43204037,0.00019742,2]
[360654904,1746917447633,-400.0,0.00019742,2]
[360654906,1746917447643,-765.64,0.00019742,2]
[360654907,1746917447654,-400.0,0.00019742,2]
[360654909,1746917447663,-400.0,0.00019742,2]
[360654911,1746917447674,-400.0,0.00019742,2]
[360654913,1746917447683,-1532.46,0.00019742,2]
[360654916,1746917447693,-1583.58,0.00019742,2]
[360654918,1746917447703,-427.86066205,0.00019742,2]
[360654920,1746917447714,-400.0,0.00019742,2]
[360654921,1746917447724,-758.53,0.00019742,2]
[360654924,1746917447733,-403.68716271,0.00019742,2]
[360654926,1746917447743,-400.0,0.00019742,2]
[360654928,1746917447752,-400.0,0.00019742,2]
[360654930,1746917447761,-400.0,0.00019742,2]
[360654931,1746917447770,-400.0,0.00019742,2]
[360654934,1746917447779,-400.0,0.00019743,2]
[360654935,1746917447789,-400.0,0.00019743,2]
[360654937,1746917447798,-400.0,0.00019743,2]
[360654940,1746917447807,-400.0,0.00019743,2]
[360654941,1746917447817,-1081.74,0.00019743,2]
[360654943,1746917447829,-1081.74,0.00019743,2]
[360654945,1746917447839,-400.0,0.00019743,2]
[360654947,1746917447848,-400.0,0.00019743,2]
[360654949,1746917447857,-400.0,0.00019743,2]
[360654951,1746917447867,-400.0,0.00019743,2]
[360654953,1746917447876,-275.46,0.00019743,2]
[360654955,1746917447886,-343.6099687,0.00019743,2]
[360654957,1746917447895,-400.0,0.00019743,2]
[360654959,1746917447906,-400.0,0.00019743,2]
[360654961,1746917447916,-400.0,0.00019743,2]
[360654963,1746917447926,-400.0,0.00019743,2]
[360654965,1746917447935,-400.0,0.00019743,2]
[360654967,1746917447944,-400.0,0.00019743,2]
[360654969,1746917447954,-207.26196815,0.00019743,2]
[360654971,1746917447963,-400.0,0.00019743,2]
[360654973,1746917447973,-400.0,0.00019743,2]
[360654975,1746917447982,-400.0,0.00019743,2]
[360654977,1746917447992,-400.0,0.00019743,2]